bitfinex/quotes_ETHUSD_20241104
["timestamp","ask_amount","ask_price","bid_price","bid_amount"]
[1730691229537,0.00368202,2477.0,2476.9,5.00043967]
[1730691229865,0.00412272,2477.2,2476.9,5.00043967]
[1730691230273,0.00368202,2477.1,2476.9,5.00043967]
[1730691231255,0.00412272,2477.2,2477.0,4.03714]
[1730691231459,0.00412272,2477.2,2477.0,4.14187581]
[1730691232126,0.00412272,2477.2,2477.0,0.10473581]
[1730691235158,0.00412272,2477.2,2477.0,4.14172581]
[1730691235368,0.00412272,2477.2,2477.1,0.84300686]
[1730691235528,0.00412272,2477.2,2477.0,0.10473581]
[1730691235857,0.00412272,2477.2,2476.9,4.03721]
[1730691235858,0.00412272,2477.2,2477.1,0.10460268]
[1730691236058,0.00412272,2477.2,2476.9,8.07443]
[1730691236059,0.00412272,2477.2,2476.9,4.03721]
[1730691236228,0.00412272,2477.2,2477.1,0.10460268]
[1730691236426,0.00412272,2477.2,2476.9,4.03721]
[1730691236621,0.00412272,2477.2,2477.1,0.10460268]
[1730691236826,0.00412272,2477.2,2477.0,0.40687987]
[1730691237061,0.00412272,2477.2,2477.1,0.10460268]
[1730691238500,0.00412272,2477.2,2477.1,0.40677333]
[1730691238801,0.00412272,2477.2,2477.1,0.10460268]
[1730691238996,0.00412272,2477.2,2477.1,0.40677333]
[1730691239671,0.00412272,2477.2,2477.1,0.10460268]
[1730691239895,0.00412272,2477.2,2477.1,0.30245307]
[1730691240105,0.00412272,2477.2,2477.1,0.40705765]
[1730691242193,0.00412272,2477.2,2477.1,0.40720314]
[1730691242710,0.00412272,2477.2,2477.1,0.40720859]
[1730691243578,0.00412272,2477.2,2477.1,0.5615633]
[1730691244321,0.00412272,2477.2,2477.1,0.5615622]
[1730691245176,0.00412272,2477.2,2477.1,1.04572561]
[1730691245390,0.00412272,2477.2,2477.1,0.5615622]
[1730691245583,0.00412272,2477.2,2477.1,0.40720859]
[1730691245784,0.00412272,2477.2,2477.1,0.56156753]
[1730691246003,0.78952272,2477.2,2477.1,0.56156753]
[1730691249220,1.27249319,2477.2,2477.1,0.56156753]
[1730691249425,1.27249319,2477.2,2477.1,0.10460458]
[1730691249426,4.80933272,2477.2,2477.1,0.10460458]
[1730691249719,0.77208202,2477.0,2476.8,0.48416187]
[1730691249882,0.00412272,2476.9,2476.7,0.48416187]
[1730691250082,0.00412272,2476.9,2476.8,0.94122153]
[1730691250279,0.77252272,2476.9,2476.8,0.30266788]
[1730691250523,0.77252272,2476.9,2476.8,0.45705966]
[1730691250720,0.77252272,2476.9,2476.8,0.45704794]
[1730691251182,0.77252272,2476.9,2476.8,0.45705018]
[1730691251814,0.77252272,2476.9,2476.8,0.30266788]
[1730691252175,0.00368202,2477.0,2476.8,0.30266788]
[1730691252416,0.00368202,2477.0,2476.9,0.30266788]
[1730691252977,0.00412272,2477.1,2476.9,0.30266788]
[1730691253279,0.00368202,2477.2,2477.0,4.33973024]
[1730691253509,0.00368202,2477.2,2477.1,0.30267485]
[1730691255619,0.00368202,2477.2,2477.1,0.45698592]
[1730691256504,0.00368202,2477.2,2477.1,0.78693786]
[1730691256940,0.00368202,2477.2,2477.1,0.94126449]
[1730691257117,0.00368202,2477.2,2477.1,0.63859601]
[1730691257313,0.00368202,2477.2,2477.1,0.48426938]
[1730691257542,0.00368202,2477.2,2477.1,0.94128507]
[1730691258842,0.00412272,2477.3,2477.1,6.06567248]
[1730691259049,0.77208202,2477.4,2477.2,4.49381126]
[1730691259050,0.00368202,2477.4,2477.2,4.49381126]
[1730691259346,0.00368202,2477.4,2477.3,0.30267483]
[1730691259703,0.00368202,2477.4,2477.3,0.40708345]
[1730691260316,0.7684,2477.6,2477.4,4.03646]
[1730691260317,0.77208202,2477.6,2477.4,4.03646]
[1730691260559,0.77208202,2477.8,2477.3,4.84711661]
[1730691260722,0.77208202,2477.8,2477.5,0.1041956]
[1730691261051,0.77208202,2477.8,2477.4,8.17714172]
[1730691261252,0.77208202,2477.8,2477.6,0.10405871]
[1730691261610,0.77208202,2477.8,2477.4,4.03639]
[1730691261807,0.77208202,2477.8,2477.7,0.10395222]
[1730691262150,0.77208202,2477.8,2477.6,4.3387264]
[1730691262378,4.03535,2478.1,2477.8,4.03575]
[1730691262379,0.00368202,2478.0,2477.8,4.03575]
[1730691262945,0.00368202,2478.0,2477.9,0.40614565]
[1730691263153,0.00368202,2478.0,2477.9,0.10359303]
[1730691263375,0.00368202,2478.0,2477.9,0.40599579]
[1730691264271,0.00368202,2478.0,2477.9,0.10359303]
[1730691267663,4.86559202,2478.0,2477.9,0.10359303]
[1730691267829,4.86559202,2478.0,2477.9,0.1034981]
[1730691267830,1.72059549,2478.0,2477.9,0.1034981]
[1730691268158,1.72059549,2478.0,2477.5,4.03628]
[1730691268374,0.83008202,2478.0,2477.9,0.1034981]
[1730691268571,4.86562202,2478.0,2477.6,0.3019748]
[1730691268870,4.86562202,2478.0,2477.5,4.03628]
[1730691269030,4.86562202,2478.0,2477.7,0.10371106]
[1730691269230,1.72059849,2478.0,2477.5,4.03624]
[1730691269430,0.00412272,2477.9,2477.4,0.1045]
[1730691269667,0.8264,2477.8,2477.6,0.10381755]
[1730691269968,0.8264,2477.8,2477.5,0.40587183]
[1730691270270,0.8264,2477.8,2477.7,0.10371106]
[1730691270436,0.8264,2477.8,2477.6,0.10381755]
[1730691270638,0.83008202,2477.8,2477.6,0.10381755]
[1730691270879,5.35289149,2477.8,2477.6,0.10381755]
[1730691271243,0.00368202,2477.5,2477.2,8.07352]
[1730691271445,0.00368202,2477.5,2477.3,4.33859716]
[1730691271759,0.00780474,2477.5,2477.2,4.03673]
[1730691271970,0.00780474,2477.5,2477.3,0.301959]
[1730691272366,0.00412272,2477.5,2477.3,0.301959]
[1730691272555,0.00780474,2477.5,2477.3,0.301959]
[1730691272874,0.00780474,2477.5,2477.2,4.03673]
[1730691273241,0.00780474,2477.5,2477.3,0.30196621]
[1730691274442,0.00780474,2477.5,2477.4,0.10403056]
[1730691275265,0.00780474,2477.5,2477.2,4.03672]
[1730691275652,0.00780474,2477.5,2477.4,0.10403056]
[1730691275986,0.00780474,2477.5,2477.3,0.40611584]
[1730691276276,0.00780474,2477.5,2477.4,0.10403056]
[1730691276669,0.00780474,2477.5,2477.3,0.30197366]
[1730691276853,0.00780474,2477.5,2477.4,0.10406096]
[1730691277470,0.00780474,2477.5,2477.2,4.03672]
[1730691277646,0.00780474,2477.5,2477.4,0.10406096]
[1730691277982,0.00780474,2477.5,2477.3,0.30197487]
[1730691278183,0.00780474,2477.5,2477.4,0.10406096]
[1730691280406,0.00780474,2477.5,2477.2,4.03672]
[1730691280550,0.00780474,2477.5,2477.4,0.10406096]
[1730691280886,0.00780474,2477.5,2477.2,8.07346]
[1730691281091,0.00780474,2477.5,2477.3,0.10416747]
[1730691281387,0.00780474,2477.5,2477.2,8.07346]
[1730691281594,0.00780474,2477.5,2477.4,0.10406096]
[1730691281746,0.00780474,2477.5,2477.3,0.10416747]
[1730691281958,0.00780474,2477.5,2477.2,8.07344]
[1730691282152,0.00780474,2477.5,2477.4,0.10406096]
[1730691282389,0.00780474,2477.5,2477.2,8.07344]
[1730691282547,0.00780474,2477.5,2477.2,4.03672]
[1730691282871,0.00780474,2477.5,2477.3,0.10416747]
[1730691283092,0.00780474,2477.5,2477.2,4.03672]
[1730691283384,0.00412272,2477.5,2477.3,0.10416747]
[1730691283684,0.00780474,2477.5,2477.3,0.10416747]
[1730691283887,0.00780474,2477.5,2477.4,0.10406096]
[1730691284291,0.00780474,2477.5,2477.2,4.03672]
[1730691284455,0.00780474,2477.5,2477.2,8.07345]
[1730691284791,0.00780474,2477.5,2477.4,0.10406096]
[1730691285288,0.00780474,2477.5,2477.0,5.68138464]
[1730691285585,0.00780474,2477.5,2477.1,4.9933563]
[1730691285792,0.00780474,2477.5,2477.1,4.69131053]
[1730691287509,0.00368202,2477.3,2477.1,4.69131053]
[1730691289905,0.00780474,2477.5,2477.1,4.69131053]
[1730691290104,0.00368202,2477.3,2477.1,4.69131053]
[1730691291475,0.00780474,2477.5,2477.1,4.69131053]
[1730691291676,0.00368202,2477.3,2477.1,4.69131053]
[1730691293016,0.00368202,2477.3,2477.2,4.03681]
[1730691293308,0.00368202,2477.3,2477.2,4.14121499]
[1730691293686,0.00780474,2477.5,2477.3,4.03664]
[1730691293882,0.00780474,2477.5,2477.3,4.14114]
[1730691294122,0.00780474,2477.5,2477.4,0.10419005]
[1730691298005,0.00780474,2477.7,2477.4,4.14067005]
[1730691298389,0.00368202,2477.5,2477.4,4.14067005]
[1730691298702,0.00368202,2477.5,2477.4,5.13328852]
[1730691299015,0.00368202,2477.5,2477.4,1.09680852]
[1730691299189,0.00368202,2477.5,2477.4,0.10419005]
[1730691300224,0.00780474,2477.7,2477.4,0.10419005]
[1730691300421,0.00368202,2477.5,2477.4,0.10419005]
[1730691305325,0.00780474,2477.7,2477.4,4.14067005]
[1730691305527,0.00780474,2477.7,2477.4,5.12283152]
[1730691305844,4.03561,2478.0,2477.7,0.55]
[1730691305845,0.00368202,2477.9,2477.7,0.55]
[1730691306000,0.00780474,2478.1,2477.7,4.58589]
[1730691306199,0.00780474,2478.1,2477.8,5.88844021]
[1730691306430,0.00780474,2478.1,2477.8,4.24406557]
[1730691307828,0.00780474,2478.1,2477.8,4.24399557]
[1730691308035,0.00780474,2478.1,2477.8,4.24398557]
[1730691308196,0.00780474,2478.1,2477.8,8.27971557]
[1730691308396,0.00780474,2478.1,2477.8,4.24396557]
[1730691308608,0.00780474,2478.1,2477.8,4.90704956]
[1730691308812,0.00780474,2478.1,2477.8,9.02349757]
[1730691309138,0.00412272,2478.3,2478.0,5.67988464]
[1730691309310,0.00780474,2478.3,2477.9,4.13926771]
[1730691309511,0.00780474,2478.3,2478.1,0.10325291]
[1730691309837,0.00780474,2478.3,2478.1,4.13983]
[1730691309838,0.00412272,2478.3,2478.1,4.13983]
[1730691310130,0.00780474,2478.3,2478.2,0.10314646]
[1730691310931,0.00780474,2478.6,2478.2,5.86340195]
[1730691311102,0.00780474,2478.6,2478.3,4.035]
[1730691311309,0.00780474,2478.6,2478.3,4.13804002]
[1730691312114,0.7631,2478.7,2478.4,1.64437464]
[1730691312315,0.00780474,2478.8,2478.4,1.74725698]
[1730691312548,0.00780474,2478.8,2478.5,4.13917]
[1730691312747,0.00780474,2479.0,2478.6,5.75946653]
[1730691313032,0.00368202,2479.0,2478.6,5.86212413]
[1730691313232,0.00412272,2479.1,2478.8,5.67857464]
[1730691313435,0.00368202,2479.2,2478.9,0.1045]
[1730691313642,0.00368202,2479.2,2478.9,0.20681425]
[1730691314041,0.00368202,2479.2,2479.0,1.64437464]
[1730691314352,0.00368202,2479.2,2479.1,0.1021015]
[1730691314643,0.00412272,2479.3,2479.1,4.1358115]
[1730691314936,0.00368202,2479.4,2479.1,0.1021015]
[1730691315139,0.00368202,2479.4,2479.1,4.1357315]
[1730691315302,0.00412272,2479.5,2479.3,0.1045]
[1730691315504,0.00368202,2479.4,2479.2,0.55]
[1730691316855,0.00412272,2479.5,2479.2,4.58349]
[1730691317536,0.00412272,2479.5,2479.2,0.55]
[1730691317919,0.00412272,2479.5,2479.2,4.58348]
[1730691318762,0.00412272,2479.5,2479.2,4.66414082]
[1730691319447,0.00412272,2479.5,2479.3,0.10173324]
[1730691320154,0.7631,2479.8,2479.3,0.99214065]
[1730691320323,0.00368202,2479.5,2479.3,0.10173324]
[1730691320518,0.00368202,2479.5,2479.1,0.1045]
[1730691320745,0.00368202,2479.5,2479.2,0.65157398]
[1730691321455,4.03675202,2479.5,2479.2,0.65157398]
[1730691321653,4.03675202,2479.5,2479.2,0.10157398]
[1730691321654,0.00368202,2479.3,2479.2,0.10157398]
[1730691322054,0.00368202,2479.3,2478.9,0.55]
[1730691322663,0.00368202,2479.3,2479.0,0.10178672]
[1730691323321,0.76722272,2479.4,2479.1,0.55]
[1730691323521,0.76722272,2479.4,2479.1,0.65168035]
[1730691323522,0.00368202,2479.3,2479.1,0.65168035]
[1730691331576,0.77382272,2479.6,2479.1,1.22473239]
[1730691331745,0.00368202,2479.7,2479.4,4.03321]
[1730691331949,0.00368202,2479.7,2479.3,0.55]
[1730691332245,0.00368202,2479.7,2479.5,0.17710841]
[1730691332542,0.00368202,2479.7,2479.6,0.17698006]
[1730691332758,0.00368202,2479.7,2479.3,0.55]
[1730691333075,0.00368202,2479.7,2479.6,0.17698006]
[1730691333676,0.00368202,2479.7,2479.4,4.13771]
[1730691333876,0.00368202,2479.7,2479.6,0.17698006]
[1730691334186,0.00368202,2479.7,2479.6,0.17696679]
[1730691334487,0.00368202,2479.9,2479.6,0.17696679]
[1730691334836,0.77750474,2480.2,2479.7,0.08064895]
[1730691335136,0.00368202,2480.1,2479.8,0.28124804]
[1730691336276,0.00412272,2480.2,2479.9,4.11305208]
[1730691336634,0.00412272,2480.2,2480.0,0.17649331]
[1730691337331,0.00412272,2480.2,2479.9,0.55]
[1730691337563,0.00368202,2480.3,2480.1,0.17629489]
[1730691337769,0.00368202,2480.3,2480.0,4.03224]
[1730691337979,0.83461732,2480.4,2480.0,4.03224]
[1730691337980,0.0607946,2480.4,2480.3,4.58177]
[1730691338136,0.00368202,2480.9,2480.5,0.55]
[1730691338576,0.00368202,2480.9,2480.6,0.17574451]
[1730691338760,0.00412272,2480.8,2480.6,0.17574451]
[1730691338937,4.03509272,2480.8,2480.4,0.55]
[1730691339275,4.03509272,2480.8,2480.7,0.17559543]
[1730691339479,4.03509272,2480.8,2480.4,0.55]
[1730691339640,0.00412272,2480.8,2480.7,0.17559543]
[1730691339836,0.00412272,2480.8,2480.4,1.018637]
[1730691340039,0.00412272,2480.8,2480.7,0.17552535]
[1730691340364,0.00412272,2480.8,2480.7,0.17551966]
[1730691340560,4.03507272,2480.8,2480.4,1.018637]
[1730691340740,4.03507272,2480.8,2480.7,0.17551777]
[1730691340935,4.03507272,2480.8,2480.4,0.55]
[1730691341136,4.03507272,2480.8,2480.7,0.17551777]
[1730691341337,4.03507272,2480.8,2480.4,0.55]
[1730691341533,4.86717272,2480.8,2480.7,0.17552156]
[1730691341783,0.8321,2480.4,2480.0,0.1045]
[1730691342151,0.8321,2480.4,2479.9,0.468708]
[1730691342674,0.8321,2480.4,2480.0,0.08063274]
[1730691342877,0.8321,2480.4,2479.9,4.501028]
[1730691343378,0.8321,2480.4,2480.0,0.55]
[1730691343588,0.83622272,2480.4,2480.0,0.55]
[1730691343740,0.83622272,2480.4,2480.0,1.4688078]
[1730691344375,0.83622272,2480.4,2479.9,0.55]
[1730691344376,0.00368202,2480.3,2479.9,0.55]
[1730691344580,4.03546202,2480.3,2479.7,0.55]
[1730691345341,0.00368202,2480.3,2479.7,0.55]
[1730691345551,0.00368202,2480.3,2479.9,0.55]
[1730691345552,4.03548202,2480.3,2479.9,0.55]
[1730691345755,0.00368202,2480.1,2479.9,0.55]
[1730691349136,0.00368202,2480.1,2480.0,0.17609723]
[1730691351991,0.83578202,2480.1,2480.0,0.17609723]
[1730691352141,0.83578202,2480.1,2479.2,4.13798]
[1730691352142,4.86438,2480.0,2479.2,4.13798]
[1730691352341,4.86438,2480.0,2479.3,4.447108]
[1730691352342,0.00368202,2479.8,2479.3,4.447108]
[1730691352663,0.00368202,2479.8,2479.3,4.6181556]
[1730691352981,0.00368202,2479.8,2479.3,0.5848456]
[1730691353142,0.00368202,2479.6,2479.3,0.5848456]
[1730691353337,0.00368202,2479.6,2479.4,0.55]
[1730691353544,0.00368202,2479.6,2479.5,0.17082879]
[1730691354965,4.04070474,2479.6,2479.5,0.17082879]
[1730691355282,4.86518,2479.5,2478.9,4.33449]
[1730691355442,0.00368202,2479.3,2478.9,4.03401]
[1730691355960,0.00368202,2479.3,2478.8,4.1387]
[1730691356275,0.00368202,2479.3,2479.0,0.55]
[1730691356492,0.00368202,2479.1,2478.9,0.55]
[1730691356685,0.00368202,2479.1,2478.9,5.13739353]
[1730691358450,0.00368202,2479.1,2479.0,0.08066766]
[1730691358651,0.00368202,2479.1,2479.0,0.63066766]
[1730691358855,0.00368202,2479.1,2479.0,0.55]
[1730691361661,0.00368202,2479.7,2479.5,0.55]
[1730691361859,4.03234,2480.0,2479.5,4.58303]
[1730691361860,0.00368202,2479.9,2479.5,4.58303]
[1730691362088,0.00368202,2479.9,2479.5,4.58305]
[1730691362391,0.00368202,2479.9,2479.4,0.55]
[1730691362598,0.00368202,2479.9,2479.4,0.85114385]
[1730691362780,0.00368202,2479.9,2479.6,0.55]
[1730691363107,0.00412272,2479.8,2479.3,0.55]
[1730691363393,0.00412272,2479.8,2479.3,4.88452018]
[1730691363702,0.00412272,2479.8,2479.5,0.55]
[1730691364208,0.00412272,2479.8,2479.6,0.17088236]
[1730691364373,0.00412272,2479.8,2479.4,0.55]
[1730691364563,0.00412272,2479.8,2479.7,0.17077298]
[1730691364762,0.00412272,2479.8,2479.4,1.422133]
[1730691364991,0.00412272,2479.8,2479.7,0.17077298]
[1730691365185,0.00412272,2479.8,2479.4,1.422133]
[1730691365499,0.00412272,2479.8,2479.7,0.17077678]
[1730691365953,0.00412272,2479.8,2479.3,0.55]
[1730691366161,0.00780474,2479.4,2478.9,5.53684881]
[1730691366389,0.00780474,2479.4,2479.0,0.30124763]
[1730691366969,0.00780474,2479.4,2479.0,4.33512763]
[1730691367301,0.00780474,2479.4,2479.1,4.1143746]
[1730691367464,0.00780474,2479.4,2479.2,0.81482546]
[1730691367659,0.00780474,2479.4,2479.1,0.55]
[1730691368262,0.8025,2479.3,2479.0,0.55]
[1730691368498,0.00368202,2479.2,2478.8,0.85131051]
[1730691368807,0.00368202,2479.2,2479.0,0.55]
[1730691370495,0.00368202,2479.2,2478.8,4.58416]
[1730691370701,0.00368202,2479.2,2479.0,0.55]
[1730691371803,0.00368202,2479.2,2478.9,0.55]
[1730691373230,0.00368202,2479.2,2478.9,0.85137843]
[1730691373612,0.8025,2479.3,2478.9,0.85137843]
[1730691373932,0.00368202,2479.2,2478.9,0.55]
[1730691375605,0.00368202,2479.2,2478.8,0.30137843]
[1730691375606,0.8025,2479.1,2478.8,0.30137843]
[1730691375800,0.00412272,2479.0,2478.7,0.30137843]
[1730691376126,0.00412272,2479.0,2478.5,4.03461]
[1730691376330,0.00412272,2479.0,2478.6,1.20331911]
[1730691377705,0.00412272,2478.7,2478.6,0.30143458]
[1730691377908,0.00412272,2478.7,2478.3,0.45499387]
[1730691378119,0.00412272,2478.7,2478.3,0.30143458]
[1730691378416,0.80618202,2478.6,2478.1,4.03533]
[1730691378616,0.80618202,2478.6,2478.1,4.53365853]
[1730691379206,0.80618202,2478.6,2478.2,4.75765369]
[1730691382850,0.80618202,2478.6,2478.2,0.72250369]
[1730691383148,0.00412272,2478.5,2478.2,0.72250369]
[1730691383822,0.00412272,2478.5,2478.2,4.75766369]
[1730691384008,0.00412272,2478.5,2478.3,0.48383576]
[1730691384209,0.00412272,2478.5,2478.3,0.65622995]
[1730691387216,0.8025,2478.6,2478.3,0.65622995]
[1730691387556,0.76318202,2478.8,2478.4,4.58475]
[1730691387854,0.76318202,2478.8,2478.5,0.69658421]
[1730691390477,0.00412272,2478.9,2478.5,4.73119421]
[1730691390614,0.76318202,2479.0,2478.6,0.55]
[1730691390816,0.76318202,2479.0,2478.7,0.1722426]
[1730691391223,4.79708202,2479.0,2478.7,0.1722426]
[1730691391430,0.76318202,2479.0,2478.7,0.1722426]
[1730691391662,0.76318202,2479.0,2478.7,0.70034366]
[1730691394727,0.00412272,2478.9,2478.7,0.70034366]
[1730691396939,0.00412272,2478.9,2478.7,0.1722426]
[1730691400368,4.03817272,2478.9,2478.7,0.1722426]
[1730691400589,4.79609202,2478.8,2478.7,0.1722426]
[1730691400932,4.79257,2478.7,2478.1,4.33688953]
[1730691401131,4.79257,2478.7,2478.1,4.03534]
[1730691401370,4.79257,2478.7,2478.2,0.17272745]
[1730691401758,0.00368202,2478.5,2478.2,0.17272745]
[1730691403344,0.00368202,2478.5,2478.2,0.25342237]
[1730691403547,0.00368202,2478.5,2478.2,4.28859237]
[1730691404173,0.00368202,2478.5,2478.2,0.25342237]
[1730691404374,0.00368202,2478.5,2478.2,4.79921201]
[1730691404873,0.00368202,2478.5,2478.2,0.76404201]
[1730691405170,0.76188202,2478.7,2478.2,0.76404201]
[1730691405373,0.00368202,2478.5,2478.2,0.76404201]
[1730691405549,0.00368202,2478.5,2478.2,0.68334709]
[1730691405748,0.00368202,2478.5,2478.3,0.4799282]
[1730691406070,0.00368202,2478.5,2478.4,0.17255777]
[1730691408485,0.00780474,2478.5,2478.4,0.17255777]
[1730691408873,0.00780474,2478.5,2478.2,0.55]
[1730691409203,0.00780474,2478.5,2478.3,0.17270898]
[1730691409204,0.76600474,2478.5,2478.3,0.17270898]
[1730691409410,0.76600474,2478.5,2478.0,0.55]
[1730691409701,0.76600474,2478.5,2478.1,0.17292799]
[1730691410469,0.76600474,2478.5,2478.1,0.47454285]
[1730691411801,0.76600474,2478.5,2478.1,4.50988285]
[1730691412102,0.76600474,2478.5,2478.2,0.30174867]
[1730691412409,0.76600474,2478.5,2478.3,0.17270898]
[1730691412702,0.76600474,2478.5,2478.3,0.86256381]
[1730691412903,0.76600474,2478.5,2478.4,0.17259948]
[1730691414703,0.00780474,2478.5,2478.4,0.17259948]
[1730691415072,0.00412272,2478.5,2478.4,0.17259948]
[1730691415503,0.00780474,2478.5,2478.4,0.17259948]
[1730691417181,0.00412272,2478.5,2478.4,0.474447]
[1730691417514,0.00412272,2478.5,2478.4,1.02210508]
[1730691418390,0.00780474,2478.5,2478.4,1.02210508]
[1730691418772,0.00412272,2478.5,2478.4,1.02210508]
[1730691419376,0.76600474,2478.7,2478.4,1.02210508]
[1730691419613,0.76600474,2478.7,2478.5,0.30184752]
[1730691419783,0.76600474,2478.7,2478.6,0.17238052]
[1730691420213,0.76600474,2478.7,2478.3,0.25853445]
[1730691420414,0.76600474,2478.7,2478.6,0.17238052]
[1730691420601,0.76600474,2478.7,2478.3,0.25853445]
[1730691420808,0.76600474,2478.7,2478.4,0.30225574]
[1730691421117,0.76600474,2478.7,2478.5,0.47474574]
[1730691421410,0.76600474,2478.7,2478.5,0.17249]
[1730691421625,0.7582,2478.6,2478.5,0.17249]
[1730691421914,4.79273,2478.6,2478.5,0.17249]
[1730691422346,0.00780474,2478.0,2477.9,0.45649292]
[1730691422619,0.00780474,2478.0,2477.9,0.46963857]
[1730691423116,0.00780474,2478.0,2477.9,0.4696982]
[1730691424180,0.00780474,2478.0,2477.9,0.16727813]
[1730691424622,0.00780474,2478.0,2477.6,0.15410623]
[1730691424833,0.00780474,2478.0,2477.9,0.16727813]
[1730691425431,0.00780474,2478.0,2477.8,0.30221615]
[1730691425628,0.00780474,2478.0,2477.9,0.16727813]
[1730691425864,0.7582,2477.9,2477.5,0.15402742]
[1730691426171,0.7582,2477.9,2477.6,0.30221415]
[1730691426380,0.7582,2477.9,2477.6,0.16760677]
[1730691426560,0.7582,2477.9,2477.7,0.30221455]
[1730691426859,0.7582,2477.9,2477.8,0.16738767]
[1730691427061,0.7582,2477.9,2477.6,0.30221455]
[1730691427381,0.7582,2477.9,2477.7,0.16749722]
[1730691430350,0.7582,2477.9,2477.4,0.54364064]
[1730691430351,0.00412272,2477.7,2477.4,0.51634404]
[1730691430549,0.00368202,2477.6,2477.4,0.06052383]
[1730691431983,0.00412272,2478.0,2477.6,4.03601]
[1730691432191,0.00368202,2477.9,2477.7,0.87029212]
[1730691432857,0.00412272,2478.0,2477.7,0.87029212]
[1730691433056,0.00368202,2477.9,2477.7,0.87029212]
[1730691433553,0.00412272,2478.0,2477.8,0.49064421]
[1730691433748,0.77788202,2478.1,2477.8,4.52639421]
[1730691433973,0.00368202,2478.1,2477.9,4.03564]
[1730691434950,0.77788202,2478.3,2477.9,4.11634685]
[1730691435149,0.00368202,2478.3,2477.9,4.11634685]
[1730691435462,0.00368202,2478.3,2478.0,4.89976411]
[1730691435983,0.00368202,2478.3,2478.0,0.86427411]
[1730691439265,0.00368202,2478.3,2478.1,0.16738716]
[1730691441869,0.00412272,2478.4,2478.1,0.35258817]
[1730691442083,0.00412272,2478.4,2478.2,8.62018]
[1730691442283,0.00412272,2478.4,2478.3,1.06436059]
[1730691443159,0.00412272,2478.4,2478.3,0.16708377]
[1730691443718,0.00412272,2478.4,2478.3,0.16697127]
[1730691444113,0.00412272,2478.4,2478.2,0.55]
[1730691444314,0.00412272,2478.4,2478.3,0.16697127]
[1730691444500,0.00412272,2478.4,2478.2,0.55]
[1730691444692,0.00412272,2478.4,2478.3,0.16697127]
[1730691445012,0.00412272,2478.4,2478.2,1.80359337]
[1730691445220,0.00412272,2478.4,2478.3,0.16697127]
[1730691445520,0.00412272,2478.4,2478.2,1.80359337]
[1730691445685,0.00412272,2478.4,2478.3,0.16697127]
[1730691445880,0.00412272,2478.4,2478.2,1.80359337]
[1730691446075,0.00412272,2478.4,2478.3,0.16697127]
[1730691446277,0.00412272,2478.4,2478.2,2.10544049]
[1730691446515,0.00412272,2478.4,2478.3,0.16697127]
[1730691446894,0.00412272,2478.4,2478.2,2.10544049]
[1730691447321,0.00412272,2478.4,2478.3,0.16697127]
[1730691447724,0.00412272,2478.4,2478.2,2.10544049]
[1730691447956,0.00412272,2478.4,2478.3,0.16697127]
[1730691448679,0.00412272,2478.4,2478.2,5.83876337]
[1730691448882,0.00412272,2478.4,2478.3,0.16697127]
[1730691449181,0.00412272,2478.4,2478.2,5.83876337]
[1730691449391,0.00412272,2478.4,2478.3,0.16697127]
[1730691449717,0.00412272,2478.4,2478.2,5.83876337]
[1730691449939,0.00412272,2478.4,2478.3,0.16697127]
[1730691450226,4.80865,2478.7,2478.3,0.77799473]
[1730691450227,0.00412272,2478.6,2478.3,0.77799473]
[1730691450381,0.00412272,2478.6,2478.4,4.58473]
[1730691450583,0.00412272,2478.6,2478.4,4.75159178]
[1730691453214,0.00368202,2478.7,2478.4,4.75159178]
[1730691454140,0.00368202,2478.7,2478.5,4.03462]
[1730691454349,0.8223,2478.9,2478.5,4.03462]
[1730691454350,0.00368202,2478.9,2478.5,4.0346]
[1730691454644,0.00368202,2478.9,2478.6,4.28182787]
[1730691454815,0.00368202,2478.9,2478.7,4.03433]
[1730691455153,0.00368202,2479.1,2478.9,4.03404]
[1730691455503,0.00412272,2479.2,2479.0,0.16608504]
[1730691456344,0.00412272,2479.2,2478.8,8.61818]
[1730691456516,0.00412272,2479.2,2479.1,0.16594188]
[1730691456716,0.00412272,2479.2,2478.8,8.61818]
[1730691456929,0.00368202,2479.1,2478.9,0.95192017]
[1730691457127,0.00412272,2479.2,2479.0,0.55]
[1730691457339,0.00412272,2479.4,2479.0,4.58387]
[1730691457537,0.00368202,2479.3,2479.1,0.1659194]
[1730691459047,0.00368202,2479.3,2479.2,0.55]
[1730691459406,0.00368202,2479.3,2479.2,0.71580997]
[1730691460026,0.00412272,2479.4,2479.2,0.71580997]
[1730691460209,0.00368202,2479.3,2479.2,0.71580997]
[1730691460409,0.00412272,2479.4,2479.2,0.71580997]
[1730691460718,0.00368202,2479.3,2479.2,0.71580997]
[1730691461743,0.00412272,2479.4,2479.2,0.71580997]
[1730691462729,0.00412272,2479.4,2479.2,1.60458697]
[1730691463040,0.00368202,2479.3,2479.2,1.60458697]
[1730691464246,0.00368202,2479.3,2479.2,1.05458697]
[1730691464556,0.00368202,2479.3,2479.2,0.16580997]
[1730691465050,0.00368202,2479.3,2479.1,0.55]
[1730691465249,0.00368202,2479.3,2479.2,0.16580997]
[1730691467232,0.77068202,2479.3,2479.2,0.16580997]
[1730691467439,0.00412272,2479.2,2478.8,4.13863]
[1730691467639,0.00412272,2479.2,2478.8,4.955933]
[1730691468416,0.00412272,2479.2,2478.9,0.55]
[1730691469327,0.00412272,2479.2,2479.0,0.16025463]
[1730691469729,0.77068202,2479.1,2479.0,0.16025463]
[1730691470037,0.77068202,2479.1,2478.6,8.06888]
[1730691470242,0.77068202,2479.1,2479.0,0.16025463]
[1730691470413,0.00780474,2478.9,2478.4,4.13923]
[1730691470613,0.00780474,2478.9,2478.4,4.03473]
[1730691470834,0.00780474,2478.9,2478.4,8.0695]
[1730691471114,0.00780474,2478.9,2478.4,4.03473]
[1730691471328,0.00780474,2478.9,2478.5,4.03469]
[1730691471854,0.00780474,2478.9,2478.5,4.03459]
[1730691472615,0.00780474,2478.9,2478.5,4.84154]
[1730691476221,0.00780474,2478.9,2478.6,4.66520677]
[1730691476421,0.00780474,2478.9,2478.6,4.58452]
[1730691477624,0.00780474,2478.9,2478.6,0.55]
[1730691481442,0.00780474,2478.9,2478.6,4.5844]
[1730691481655,0.00412272,2478.9,2478.7,5.01755479]
[1730691481838,0.00780474,2478.9,2478.7,5.01755479]
[1730691483958,0.00368202,2478.9,2478.7,5.01755479]
[1730691484326,0.00368202,2478.9,2478.8,0.46244174]
[1730691484528,0.00368202,2478.9,2478.8,0.16055682]
[1730691484749,0.00368202,2478.9,2478.7,0.30188492]
[1730691484925,0.00368202,2478.9,2478.8,0.16055682]
[1730691485126,0.00368202,2478.9,2478.7,0.30188492]
[1730691485353,0.00368202,2478.9,2478.8,0.16055682]
[1730691485527,0.00368202,2478.9,2478.7,0.30188492]
[1730691485726,0.00368202,2478.9,2478.8,0.16055682]
[1730691485926,0.00368202,2478.9,2478.7,0.30188492]